bitfinex/quotes_BTCUSD_20250812
["timestamp","ask_amount","ask_price","bid_price","bid_amount"]
[1754957836792,0.25278635,119010.0,118980.0,0.17650024]
[1754957836793,0.16808135,118990.0,118980.0,0.13252]
[1754957837018,0.2528146,118990.0,118980.0,0.13300873]
[1754957837477,0.2528146,118990.0,118980.0,0.3011042]
[1754957838732,0.2528146,118990.0,118980.0,0.3031042]
[1754957839146,0.2528146,118990.0,118980.0,0.3041042]
[1754957839359,0.26139036,118990.0,118980.0,0.13600873]
[1754957840458,0.94264296,118990.0,118980.0,0.00348873]
[1754957840668,0.94264296,118990.0,118980.0,0.13608873]
[1754957841096,0.26432036,118990.0,118980.0,0.00348873]
[1754957841713,0.26139036,118990.0,118980.0,0.00148873]
[1754957841921,0.26139036,118990.0,118980.0,0.00048873]
[1754957842124,0.26139036,118990.0,118980.0,0.00148873]
[1754957845405,0.26432036,118990.0,118980.0,0.00148873]
[1754957847066,0.26139036,118990.0,118980.0,0.00148873]
[1754957847248,0.39387036,118990.0,118980.0,0.00148873]
[1754957847613,0.26139036,118990.0,118980.0,0.00148873]
[1754957847809,0.26432036,118990.0,118980.0,0.00148873]
[1754957849812,0.26139036,118990.0,118980.0,0.00148873]
[1754957851299,0.26432036,118990.0,118980.0,0.00148873]
[1754957851686,0.26139036,118990.0,118980.0,0.00148873]
[1754957854897,0.26139036,118990.0,118980.0,0.1695842]
[1754957855331,0.16806722,119000.0,118990.0,0.16806891]
[1754957855571,0.25079047,119000.0,118990.0,0.98048151]
[1754957855773,0.25935152,119000.0,118990.0,0.98361151]
[1754957856219,0.25935152,119000.0,118990.0,0.8155426]
[1754957856408,0.25935152,119000.0,118990.0,0.13212]
[1754957856409,0.25992152,119000.0,118990.0,0.13212]
[1754957856771,0.26092152,119000.0,118990.0,0.13212]
[1754957857611,0.26092152,119000.0,118990.0,0.30020135]
[1754957857828,0.26092152,119000.0,118990.0,0.30534135]
[1754957858487,0.26092152,119000.0,118990.0,0.32892132]
[1754957858488,0.26035152,119000.0,118990.0,0.32892132]
[1754957859657,0.0922843,119000.0,118990.0,1.00724392]
[1754957859880,0.0922843,119000.0,118990.0,1.09772432]
[1754957859881,0.001,119000.0,118990.0,1.09772432]
[1754957861064,0.001,119000.0,118990.0,1.19772432]
[1754957861721,0.0002,119020.0,119010.0,0.1680531]
[1754957862055,0.08292325,119020.0,119010.0,1.01414654]
[1754957862279,0.08292325,119020.0,119010.0,1.01723654]
[1754957862523,0.08282325,119020.0,119010.0,1.01723654]
[1754957863148,0.08282325,119020.0,119010.0,1.01823654]
[1754957863804,0.08282325,119020.0,119010.0,0.33991394]
[1754957865236,0.08282325,119020.0,119010.0,0.33975394]
[1754957866652,0.08282325,119020.0,119010.0,1.01807654]
[1754957872008,0.0001,119020.0,119010.0,1.01807654]
[1754957872221,0.0001,119020.0,119010.0,1.04094654]
[1754957873801,0.0001,119020.0,119010.0,0.36262394]
[1754957874263,0.0001,119020.0,119010.0,0.36162394]
[1754957874458,0.0001,119020.0,119010.0,1.03994654]
[1754957874698,0.0001,119020.0,119010.0,1.04194654]
[1754957874923,0.0001,119020.0,119010.0,1.04294654]
[1754957877747,0.0001,119020.0,119010.0,0.36462394]
[1754957877992,0.0001,119020.0,119010.0,1.04294654]
[1754957878627,0.0001,119020.0,119010.0,0.91094654]
[1754957878848,0.17016898,119020.0,119010.0,0.34275394]
[1754957879296,0.00213,119020.0,119010.0,0.34275394]
[1754957879766,0.0001,119020.0,119010.0,0.34275394]
[1754957881078,0.0001,119020.0,119010.0,1.02107654]
[1754957882127,0.0001,119020.0,119010.0,1.05107654]
[1754957882329,0.0001,119020.0,119010.0,1.07394654]
[1754957882959,0.0001,119020.0,119010.0,0.39562394]
[1754957883192,0.0001,119020.0,119010.0,1.07394654]
[1754957884283,0.0001,119020.0,119010.0,1.09888726]
[1754957886239,0.0001,119020.0,119010.0,1.18161051]
[1754957887403,0.0001,119020.0,119010.0,0.50328791]
[1754957887611,0.0001,119020.0,119010.0,1.18161051]
[1754957887835,0.0001,119020.0,119010.0,1.33857195]
[1754957889316,0.0001,119020.0,119010.0,1.40618235]
[1754957890386,0.0001,119020.0,119010.0,1.40518235]
[1754957890652,0.0001,119020.0,119010.0,1.40318235]
[1754957890882,0.0001,119020.0,119010.0,1.40418235]
[1754957891084,0.0002,119030.0,119020.0,1.01518317]
[1754957891297,0.0002,119030.0,119020.0,1.42459949]
[1754957891503,0.0002,119030.0,119020.0,1.45056949]
[1754957891692,0.0002,119030.0,119020.0,0.6037853]
[1754957891936,0.0002,119030.0,119020.0,1.45092949]
[1754957892570,0.0002,119030.0,119020.0,0.6067853]
[1754957892682,0.0002,119030.0,119020.0,1.45492949]
[1754957894779,0.0002,119030.0,119020.0,1.46888449]
[1754957895402,0.01395479,119040.0,119030.0,0.16802486]
[1754957895615,0.01395479,119040.0,119030.0,0.60456254]
[1754957895836,0.01395479,119040.0,119030.0,2.29885092]
[1754957896051,0.01395479,119040.0,119030.0,2.32407892]
[1754957896262,0.01395479,119040.0,119030.0,2.41407892]
[1754957897296,0.01611479,119040.0,119030.0,1.30069348]
[1754957897503,0.01611479,119040.0,119030.0,1.43201348]
[1754957897926,0.01611479,119040.0,119030.0,1.43501348]
[1754957898313,0.01611479,119040.0,119030.0,1.43201348]
[1754957898523,0.01611479,119040.0,119030.0,1.43101348]
[1754957898729,0.01611479,119040.0,119030.0,1.34101348]
[1754957898936,0.01611479,119040.0,119030.0,1.34201348]
[1754957899149,0.01611479,119040.0,119030.0,1.34101348]
[1754957899356,0.01611479,119040.0,119030.0,1.34401348]
[1754957900187,0.01611479,119040.0,119030.0,0.49686929]
[1754957900397,0.01611479,119040.0,119030.0,0.49786929]
[1754957900602,0.01611479,119040.0,119030.0,1.34501348]
[1754957900821,0.18723554,119040.0,119030.0,0.17202486]
[1754957901031,0.18723554,119040.0,119030.0,0.1372]
[1754957901636,0.18723554,119040.0,119030.0,0.1332]
[1754957901857,0.16802486,119030.0,119020.0,0.24957205]
[1754957902074,0.17329486,119030.0,119020.0,0.2532]
[1754957902289,0.17329486,119030.0,119020.0,0.30123898]
[1754957903603,0.17329486,119030.0,119020.0,0.30119898]
[1754957904278,0.17329486,119030.0,119020.0,0.30319898]
[1754957904490,0.00216,119030.0,119020.0,1.15034317]
[1754957904696,0.00216,119030.0,119020.0,1.2328276]
[1754957904968,0.00216,119030.0,119020.0,0.38668341]
[1754957906217,0.00216,119030.0,119020.0,1.2338276]
[1754957909367,0.00216,119030.0,119020.0,1.15134317]
[1754957910033,0.00216,119030.0,119020.0,1.15638317]
[1754957910444,0.00216,119030.0,119020.0,0.30923898]
[1754957910666,0.00216,119030.0,119020.0,1.15638317]
[1754957912049,0.09978804,119040.0,119030.0,0.16802486]
[1754957912269,0.09883804,119040.0,119030.0,0.38390929]
[1754957912911,0.26684879,119040.0,119030.0,0.30142486]
[1754957913342,0.09883804,119040.0,119030.0,0.30142486]
[1754957913766,0.26684879,119040.0,119030.0,0.30242486]
[1754957914642,0.26684879,119040.0,119030.0,0.1344]
[1754957914865,0.26995879,119040.0,119030.0,0.1344]
[1754957915037,0.26995879,119040.0,119030.0,0.30242486]
[1754957917677,0.26495879,119040.0,119030.0,0.38490929]
[1754957918084,0.26184879,119040.0,119030.0,0.38490929]
[1754957919410,0.26184879,119040.0,119030.0,0.21688443]
[1754957919852,0.26509879,119040.0,119030.0,0.21672443]
[1754957920071,0.26509879,119040.0,119030.0,0.13424]
[1754957920277,0.26514762,119040.0,119030.0,0.13424]
[1754957922786,0.26189762,119040.0,119030.0,0.13424]
[1754957927198,0.26189762,119040.0,119030.0,0.30226486]
[1754957927634,0.09388687,119040.0,119030.0,1.14940905]
[1754957927867,0.00900362,119040.0,119030.0,1.26124348]
[1754957928095,0.00900362,119040.0,119030.0,1.23800348]
[1754957928342,0.26184762,119040.0,119030.0,0.08348443]
[1754957928630,0.09708687,119040.0,119030.0,0.30194486]
[1754957928860,0.25973762,119040.0,119030.0,0.17417486]
[1754957929077,0.26184762,119040.0,119030.0,0.30194486]
[1754957929299,0.09172687,119040.0,119030.0,1.15423905]
[1754957929520,0.00900362,119040.0,119030.0,1.23672348]
[1754957929750,0.00900362,119040.0,119030.0,1.26092348]
[1754957929970,0.00900362,119040.0,119030.0,1.26292348]
[1754957930853,0.00900362,119040.0,119030.0,1.35292348]
[1754957931315,0.00900362,119040.0,119030.0,0.50577929]
[1754957931540,0.00900362,119040.0,119030.0,1.35292348]
[1754957932452,0.00900362,119040.0,119030.0,1.44292348]
[1754957932685,0.00900362,119040.0,119030.0,1.44192348]
[1754957932896,0.00900362,119040.0,119030.0,1.44292348]
[1754957933116,0.00900362,119040.0,119030.0,2.28279092]
[1754957933320,0.00900362,119040.0,119030.0,2.38979092]
[1754957933545,0.00900362,119040.0,119030.0,1.54264673]
[1754957933796,0.00900362,119040.0,119030.0,1.54564673]
[1754957934005,0.00900362,119040.0,119030.0,1.54364673]
[1754957934211,0.00900362,119040.0,119030.0,0.69550254]
[1754957934417,0.00900362,119040.0,119030.0,2.39279092]
[1754957934870,0.00900362,119040.0,119030.0,2.38979092]
[1754957935124,0.00900362,119040.0,119030.0,1.54364673]
[1754957935348,0.17639279,119100.0,119080.0,0.16795066]
[1754957935565,0.00211,119090.0,119080.0,0.33490257]
[1754957935789,0.030587,119090.0,119080.0,0.33490257]
[1754957936007,0.20712346,119090.0,119080.0,0.33490257]
[1754957936223,0.28125046,119090.0,119080.0,0.33490257]
[1754957936645,0.28125046,119090.0,119080.0,0.30131066]
[1754957937516,0.27800046,119090.0,119080.0,0.30131066]
[1754957938400,0.11855964,119090.0,119080.0,0.30131066]
[1754957938611,0.11855964,119090.0,119080.0,0.30334066]
[1754957938834,0.11855964,119090.0,119080.0,0.30646066]
[1754957939307,4.884e-05,119100.0,119090.0,0.16794021]
[1754957939528,0.00215884,119100.0,119090.0,0.16997021]
[1754957939743,0.00215884,119100.0,119090.0,0.17309021]
[1754957940595,0.00215884,119100.0,119090.0,0.16794021]
[1754957941134,0.00215884,119100.0,119090.0,0.16997021]
[1754957941332,0.00215884,119100.0,119090.0,0.25557464]
[1754957943052,0.2560582,119100.0,119090.0,0.16794021]
[1754957943507,0.16794021,119090.0,119080.0,0.16795066]
[1754957943745,1.09991765,119090.0,119080.0,0.30235066]
[1754957944016,0.25602346,119090.0,119080.0,0.30235066]
[1754957944249,0.25277346,119090.0,119070.0,0.17636684]
[1754957944478,0.17330021,119090.0,119080.0,0.13436]
[1754957944709,0.25602346,119090.0,119080.0,0.13436]
[1754957944948,1.10316765,119090.0,119080.0,0.13536]
[1754957945168,1.10316765,119090.0,119080.0,0.13532]
[1754957946498,0.25602346,119090.0,119080.0,0.13532]
[1754957946703,1.10316765,119090.0,119080.0,0.13532]
[1754957947111,1.10316765,119090.0,119080.0,0.001]
[1754957947322,0.16795431,119080.0,119070.0,0.13428]
[1754957947560,0.25278756,119080.0,119070.0,0.13428]
[1754957947798,0.16798252,119060.0,119050.0,0.0707304]
[1754957948021,0.16798252,119060.0,119040.0,0.17111891]
[1754957948022,0.16799664,119050.0,119040.0,0.17111891]
[1754957948224,0.25070577,119060.0,119040.0,0.42738891]
[1754957948861,0.25933629,119060.0,119040.0,0.42738891]
[1754957949323,0.25933629,119060.0,119050.0,0.16799664]
[1754957949530,0.26144629,119060.0,119040.0,0.30535891]
[1754957949731,0.26144629,119060.0,119040.0,0.50784334]
[1754957950314,0.26144629,119060.0,119040.0,0.50884334]
[1754957951107,0.25281577,119060.0,119050.0,0.16799664]
[1754957951732,0.25281577,119060.0,119040.0,0.38884334]
[1754957952355,0.25281577,119060.0,119040.0,0.001]
[1754957952356,0.25071989,119050.0,119040.0,0.001]
[1754957952571,0.25287989,119050.0,119040.0,0.13512]
[1754957952802,0.25287989,119050.0,119040.0,0.13412]
[1754957952994,0.25287989,119050.0,119030.0,0.17943844]
[1754957952995,0.16801075,119040.0,119030.0,0.17943844]
[1754957953211,0.252894,119040.0,119030.0,0.31574844]
[1754957953650,1.10003819,119040.0,119020.0,0.1679872]
[1754957953853,0.16802486,119030.0,119020.0,0.30532603]
[1754957954064,0.17018486,119030.0,119020.0,0.30430603]
[1754957954706,0.17018486,119030.0,119020.0,0.30735603]
[1754957955614,0.17018486,119030.0,119020.0,0.34473001]
[1754957956086,0.17018486,119030.0,119020.0,0.30735603]
[1754957956311,0.17018486,119030.0,119020.0,0.31035603]
[1754957956538,0.17018486,119030.0,119020.0,0.30835603]
[1754957956978,0.17018486,119030.0,119020.0,0.31035603]
[1754957957199,0.25290811,119030.0,119020.0,0.00507883]
[1754957957443,1.1031523,119030.0,119020.0,0.00304883]
[1754957957708,1.18563673,119030.0,119020.0,0.00304883]
[1754957957956,1.1031523,119030.0,119020.0,0.00304883]
[1754957958381,1.1031523,119030.0,119020.0,0.00204883]
[1754957959018,1.1031523,119030.0,119020.0,4.883e-05]
[1754957959471,1.1031523,119030.0,119020.0,0.00104883]
[1754957959686,0.25600811,119030.0,119020.0,4.883e-05]
[1754957960118,1.1283933,119030.0,119020.0,4.883e-05]
[1754957963344,0.28124911,119030.0,119020.0,4.883e-05]
[1754957963550,1.1283933,119030.0,119020.0,4.883e-05]
[1754957963757,0.10796425,119030.0,119020.0,0.30716781]
[1754957963946,0.10796425,119030.0,119020.0,0.38965224]
[1754957964627,0.27598911,119030.0,119020.0,0.13912883]
[1754957964833,0.27814911,119030.0,119020.0,0.13912883]
[1754957965045,0.27814911,119030.0,119020.0,0.00512883]
[1754957965259,0.27814911,119030.0,119020.0,0.00207883]
[1754957965465,1.1252933,119030.0,119020.0,0.00207883]
[1754957965672,1.1252933,119030.0,119020.0,4.883e-05]
[1754957965889,1.1283933,119030.0,119020.0,4.883e-05]
[1754957966543,0.28124911,119030.0,119020.0,4.883e-05]
[1754957966754,0.27814911,119030.0,119020.0,0.16808781]
[1754957967012,0.27814911,119030.0,119020.0,0.03904792]
[1754957967221,0.27814911,119030.0,119020.0,0.2070869]
[1754957967462,0.41258911,119030.0,119020.0,0.2070869]
[1754957967677,0.27814911,119030.0,119020.0,0.2070869]
[1754957968338,0.10796425,119030.0,119020.0,0.2070869]
[1754957968559,0.27598911,119030.0,119020.0,0.2070869]
[1754957968773,0.27598911,119030.0,119020.0,0.03904792]
[1754957969757,0.27598911,119030.0,119020.0,0.00512883]
[1754957970077,1.1252933,119030.0,119020.0,0.00207883]
[1754957971949,0.27814911,119030.0,119020.0,0.00207883]
[1754957972822,0.27814911,119030.0,119020.0,0.17011781]
[1754957973036,0.17639647,119050.0,119040.0,0.16801075]
[1754957973271,0.09112308,119050.0,119040.0,0.20364314]
[1754957973486,1.24422391,119050.0,119040.0,0.00203]
[1754957973700,0.39707972,119050.0,119030.0,0.17106312]
[1754957973913,0.08272325,119040.0,119030.0,0.17106312]
[1754957974126,0.08272325,119040.0,119030.0,0.17309312]
[1754957974497,0.250734,119040.0,119030.0,0.17309312]
[1754957974714,1.10003819,119040.0,119020.0,0.33895975]
[1754957975280,1.10003819,119040.0,119020.0,0.38966103]
[1754957976132,1.10003819,119040.0,119020.0,0.38866103]
[1754957976340,1.10003819,119040.0,119020.0,0.13741883]
[1754957976341,1.01516905,119030.0,119020.0,0.13741883]
[1754957976554,1.1000523,119030.0,119020.0,0.22436883]
[1754957976763,0.25290811,119030.0,119020.0,0.22436883]
[1754957976971,0.38854811,119030.0,119020.0,0.09104883]
[1754957977402,1.38534872,119030.0,119020.0,0.09004883]
[1754957977596,0.39164811,119030.0,119020.0,0.09204883]
[1754957978348,0.39164811,119030.0,119020.0,0.09304883]
[1754957978558,1.38534872,119030.0,119020.0,0.09304883]
[1754957978816,1.38534872,119030.0,119020.0,0.09204883]
[1754957979282,0.39164811,119030.0,119020.0,4.883e-05]
[1754957979482,0.39164811,119030.0,119020.0,0.00104883]
[1754957980357,0.38854811,119030.0,119020.0,0.00104883]
[1754957980787,0.39152811,119030.0,119020.0,0.00104883]
[1754957981392,0.38854811,119030.0,119020.0,0.00104883]
[1754957983093,0.39152811,119030.0,119020.0,0.00104883]
[1754957983305,1.38522872,119030.0,119020.0,0.00104883]
[1754957983516,1.46771315,119030.0,119020.0,0.00104883]
[1754957983952,1.38522872,119030.0,119020.0,0.00104883]
[1754957984823,0.39152811,119030.0,119020.0,0.00104883]
[1754957985027,1.38522872,119030.0,119020.0,0.00104883]
[1754957985231,0.39152811,119030.0,119020.0,0.00104883]
[1754957986171,1.41046972,119030.0,119020.0,0.00104883]
[1754957986393,0.42463978,119030.0,119020.0,0.00104883]
[1754957986627,1.41834039,119030.0,119020.0,0.00104883]
[1754957987291,1.41834039,119030.0,119020.0,4.883e-05]
[1754957988763,0.42463978,119030.0,119020.0,4.883e-05]
[1754957988971,1.41834039,119030.0,119020.0,4.883e-05]
[1754957989178,0.42463978,119030.0,119020.0,4.883e-05]
[1754957989395,1.41834039,119030.0,119020.0,4.883e-05]
[1754957989605,1.41834111,119030.0,119020.0,4.883e-05]
[1754957990055,1.41834104,119030.0,119020.0,4.883e-05]
[1754957990512,0.42464043,119030.0,119020.0,4.883e-05]
[1754957991014,1.41834104,119030.0,119020.0,4.883e-05]
[1754957993270,1.43579006,119030.0,119020.0,4.883e-05]
[1754957993449,1.50448485,119030.0,119020.0,4.883e-05]
[1754957993664,1.45396485,119030.0,119020.0,4.883e-05]
[1754957994513,6.45396485,119030.0,119020.0,4.883e-05]
[1754957995173,6.46970207,119030.0,119020.0,4.883e-05]
[1754957995378,6.5521865,119030.0,119020.0,4.883e-05]
[1754957995551,6.53644928,119030.0,119020.0,4.883e-05]
[1754957996408,6.55318268,119030.0,119020.0,4.883e-05]
[1754957996613,6.55316737,119030.0,119020.0,4.883e-05]
[1754957996831,6.40792551,119030.0,119020.0,4.883e-05]
[1754957997907,0.16808135,118990.0,118980.0,0.0031]
[1754957998134,1.23470335,118990.0,118980.0,0.00557873]
[1754957998593,1.23686335,118990.0,118980.0,0.00557873]
[1754957999240,0.3884046,118990.0,118980.0,0.00247873]
[1754957999463,1.23686335,118990.0,118980.0,0.00048873]
[1754957999666,1.25431237,118990.0,118980.0,0.00048873]
[1754957999890,1.2658634,118990.0,118980.0,0.00048873]
[1754958000512,1.2658634,118990.0,118980.0,0.00148873]
[1754958000723,1.2658634,118990.0,118980.0,0.00048873]
[1754958000967,1.2658634,118990.0,118980.0,1.02213295]
[1754958000968,0.09129428,118990.0,118980.0,1.02213295]
[1754958001213,0.08272325,118990.0,118980.0,0.27915863]
[1754958001430,0.08272325,118990.0,118980.0,0.1966742]
[1754958001644,0.09115523,118990.0,118980.0,0.1966742]
[1754958002088,0.08272325,118990.0,118980.0,0.1966742]
[1754958002319,0.2508046,118990.0,118980.0,0.1966742]
[1754958002574,0.08272325,118990.0,118980.0,1.04513295]
[1754958002791,0.17646395,119020.0,118980.0,1.04513295]
[1754958002792,0.17646395,119020.0,119010.0,0.1680531]
[1754958003003,0.17646395,119020.0,119010.0,0.00199]
[1754958003004,0.4201112,119020.0,119010.0,0.00199]
[1754958003212,0.4283679,119020.0,119010.0,0.00509]
[1754958003422,0.49016718,119020.0,119010.0,0.00509]
[1754958003850,0.35448718,119020.0,119010.0,0.00509]
[1754958004056,0.49016718,119020.0,119010.0,0.00509]
[1754958005793,0.49016718,119020.0,119010.0,0.00199]
[1754958006219,0.49016718,119020.0,119010.0,0.00299]
[1754958006444,0.49016718,119020.0,119010.0,0.001]
[1754958007078,0.49314718,119020.0,119010.0,0.001]
[1754958007698,0.4305279,119020.0,119010.0,0.001]
[1754958008328,0.4315279,119020.0,119010.0,0.001]
[1754958008964,0.1680531,119010.0,119000.0,0.0031]
[1754958009167,0.25077635,119010.0,119000.0,0.00509]
[1754958009827,0.25280635,119010.0,119000.0,0.00199]
[1754958010061,0.31275145,119010.0,119000.0,0.00199]
[1754958010551,0.31275145,119010.0,119000.0,0.001]
[1754958010768,1.32710775,119010.0,119000.0,0.001]
[1754958011647,0.33336047,119010.0,119000.0,0.001]
[1754958012079,0.16808135,118990.0,118980.0,0.18015661]
[1754958012294,0.3861646,118990.0,118980.0,0.18228661]
[1754958013100,0.3861646,118990.0,118980.0,0.00578873]
[1754958013688,0.3861646,118990.0,118980.0,0.00778873]
[1754958013886,0.3861646,118990.0,118980.0,0.00878873]
[1754958014295,0.3861646,118990.0,118980.0,0.1768842]
[1754958015346,0.3861646,118990.0,118980.0,0.00878873]
[1754958018163,0.3858046,118990.0,118980.0,0.00878873]
[1754958022224,0.44890767,118990.0,118980.0,0.00348873]
[1754958022612,0.44574767,118990.0,118980.0,0.00348873]
[1754958023063,0.3878346,118990.0,118980.0,0.00248873]
[1754958024141,0.3878346,118990.0,118980.0,0.00048873]
[1754958024610,0.3878346,118990.0,118980.0,0.00578873]
[1754958025534,0.3878346,118990.0,118980.0,0.00678873]
[1754958025956,0.2528346,118990.0,118980.0,0.00678873]
[1754958026161,0.3874346,118990.0,118980.0,0.00678873]
[1754958029029,0.4126836,118990.0,118980.0,0.00678873]
[1754958029604,0.2760536,118990.0,118980.0,1.02323068]
[1754958029814,0.2508046,118990.0,118980.0,1.10571511]
[1754958030238,0.08272325,118990.0,118980.0,1.10571511]
[1754958030450,0.17645575,119010.0,119000.0,0.16806722]
[1754958030686,0.393619,119010.0,119000.0,1.0185437]
[1754958030901,0.418864,119010.0,119000.0,1.10102813]
[1754958031120,0.418864,119010.0,119000.0,1.0217137]
[1754958031326,0.418864,119010.0,119000.0,0.17336722]
[1754958031530,0.418864,119010.0,119000.0,0.0053]
[1754958031741,0.393619,119010.0,119000.0,0.0053]
[1754958031966,0.393619,119010.0,119000.0,0.0063]
[1754958031967,0.394619,119010.0,119000.0,0.0063]
[1754958032826,0.393619,119010.0,119000.0,0.0063]
[1754958033236,0.393939,119010.0,119000.0,0.0063]
[1754958034592,0.393939,119010.0,119000.0,0.00313]
[1754958035142,0.39254967,119010.0,119000.0,0.00313]
[1754958035358,0.39254967,119010.0,119000.0,0.001]
[1754958035601,1.24405615,119010.0,119000.0,0.001]
[1754958035811,0.39570967,119010.0,119000.0,0.001]
[1754958036901,1.24405615,119010.0,119000.0,0.001]
[1754958038355,0.39570967,119010.0,119000.0,0.001]
[1754958038575,0.39254967,119010.0,119000.0,0.001]
[1754958038792,0.39222967,119010.0,119000.0,0.00313]
[1754958039002,0.39202967,119010.0,119000.0,0.0063]
[1754958039643,0.39206967,119010.0,119000.0,1.0227137]
[1754958039853,0.38505635,119010.0,119000.0,1.12947813]
[1754958040485,0.25077635,119010.0,119000.0,1.12947813]
[1754958040733,0.25077635,119010.0,119000.0,0.28113165]
[1754958040940,0.25077635,119010.0,119000.0,0.03058]
[1754958041260,0.38501635,119010.0,119000.0,0.17436722]
[1754958041467,0.25077635,119010.0,119000.0,0.0063]
[1754958041961,0.38697635,119010.0,119000.0,0.001]
[1754958042622,0.38497635,119010.0,119000.0,0.17413722]
[1754958042851,0.21692325,119010.0,119000.0,1.10496813]
[1754958043073,0.38497635,119010.0,119000.0,1.0467637]
[1754958043318,0.08272325,119010.0,119000.0,1.0467637]
[1754958044536,0.08272325,119010.0,119000.0,1.1809637]
[1754958044772,0.0335007,119020.0,119010.0,0.1680531]
[1754958044773,0.0082567,119020.0,119010.0,0.1680531]
[1754958044935,0.0082567,119020.0,119010.0,1.05637234]
[1754958044936,0.08272325,119020.0,119010.0,1.05637234]
[1754958045097,0.08272325,119020.0,119010.0,1.05936234]
[1754958045551,1.10126871,119020.0,119000.0,0.001]
[1754958045723,0.16806722,119000.0,118980.0,0.17698895]
[1754958045946,0.25079047,119000.0,118980.0,0.17997895]
[1754958046239,0.25295047,119000.0,118990.0,0.00208]
[1754958046411,0.25295047,119000.0,118990.0,0.17016135]
[1754958046612,0.25079047,119000.0,118990.0,0.17315135]
[1754958046821,0.25079047,119000.0,118990.0,0.20816538]
[1754958046822,0.08272325,119000.0,118990.0,0.20816538]
[1754958047234,0.08272325,119000.0,118990.0,0.23244538]
[1754958047659,0.08272325,119000.0,118990.0,1.36086508]
[1754958048438,0.08272325,119000.0,118990.0,0.36984538]
[1754958049051,0.08272325,119000.0,118990.0,0.33483135]
[1754958055530,0.25079047,119000.0,118990.0,0.33483135]
[1754958055755,0.25295047,119000.0,118990.0,0.003]
[1754958056057,0.25615047,119000.0,118990.0,0.003]
[1754958056939,0.25615047,119000.0,118990.0,0.002]
[1754958057378,0.16808135,118990.0,118980.0,0.00048873]
[1754958057608,0.3869246,118990.0,118980.0,0.00048873]
[1754958058813,0.3869246,118990.0,118980.0,0.00248873]
[1754958059847,0.3901246,118990.0,118980.0,0.00248873]
[1754958060248,0.3901246,118990.0,118980.0,0.00348873]
[1754958060449,0.3869246,118990.0,118980.0,0.00348873]
[1754958070516,0.3869246,118990.0,118980.0,0.1715842]
[1754958071542,0.3795246,118990.0,118980.0,0.1715842]
[1754958072488,0.3795246,118990.0,118980.0,0.00348873]
[1754958074531,0.3795246,118990.0,118980.0,0.1715842]
[1754958076756,0.3795246,118990.0,118980.0,0.00348873]
[1754958087328,1.2309025,118990.0,118980.0,0.00348873]
[1754958087530,0.3824946,118990.0,118980.0,0.00348873]
[1754958088415,0.3824946,118990.0,118980.0,0.00248873]
[1754958088606,0.3824946,118990.0,118980.0,0.00048873]
[1754958089054,0.3824946,118990.0,118980.0,0.00148873]
[1754958090481,0.3795246,118990.0,118980.0,0.00148873]
[1754958091660,0.3782046,118990.0,118980.0,0.00148873]
[1754958100122,0.08272325,118990.0,118980.0,1.1555621]
[1754958100326,0.08272325,118990.0,118980.0,1.23804653]
[1754958100498,0.13244,119010.0,119000.0,0.16806722]
[1754958100665,0.18796796,119030.0,119010.0,0.1680531]
[1754958100666,0.18476796,119030.0,119010.0,0.1680531]
[1754958100880,0.16803898,119020.0,119010.0,0.1710231]
[1754958101228,0.25076223,119020.0,119010.0,0.20312483]
[1754958102306,0.08272325,119020.0,119010.0,1.05153273]
[1754958102876,0.08272325,119020.0,119010.0,1.05253273]
[1754958103690,0.08272325,119020.0,119010.0,0.20412483]
[1754958104013,0.25076223,119020.0,119010.0,0.20412483]
[1754958106043,0.25076223,119020.0,119010.0,0.1565731]
[1754958106722,1.10117013,119020.0,119010.0,0.001]
[1754958106938,1.10437013,119020.0,119010.0,0.001]
[1754958107165,0.25596223,119020.0,119010.0,0.001]
[1754958107591,0.25276223,119020.0,119010.0,0.001]
[1754958110253,0.27800423,119020.0,119010.0,0.001]
[1754958111880,0.27800423,119020.0,119010.0,0.00305]
[1754958114273,0.27800423,119020.0,119010.0,0.00602]
[1754958114821,0.27800423,119020.0,119010.0,0.1740731]
[1754958116063,0.27600423,119020.0,119010.0,0.1740731]
[1754958118401,0.10796525,119020.0,119010.0,1.23704543]
[1754958118608,0.00834186,119030.0,119020.0,0.16803898]
[1754958118807,0.08272325,119030.0,119020.0,1.02146688]
[1754958119661,0.08272325,119030.0,119020.0,0.17305898]
[1754958119866,0.08380528,119030.0,119020.0,1.02146688]
[1754958120631,0.0924309,119030.0,119020.0,0.17305898]
[1754958120843,0.0934309,119030.0,119020.0,0.17305898]
[1754958121672,0.0934309,119030.0,119020.0,0.22209993]
[1754958121879,0.08480528,119030.0,119020.0,1.07050783]
[1754958122087,0.08480528,119030.0,119020.0,1.09401783]
[1754958122507,0.00208203,119030.0,119020.0,1.09401783]
[1754958122713,0.00108203,119030.0,119020.0,1.11872202]
[1754958122917,0.00208203,119030.0,119020.0,1.11872202]
[1754958123126,0.00208203,119030.0,119020.0,1.09401783]
[1754958123551,8.203e-05,119030.0,119020.0,1.09401783]
[1754958123756,8.203e-05,119030.0,119020.0,1.09501783]
[1754958123960,0.00108203,119030.0,119020.0,1.09501783]
[1754958124163,8.203e-05,119030.0,119020.0,1.09501783]
[1754958124613,8.203e-05,119030.0,119020.0,1.09601783]
[1754958127571,8.203e-05,119030.0,119020.0,1.17874108]
[1754958128204,8.203e-05,119030.0,119020.0,1.17774108]
[1754958128605,8.203e-05,119030.0,119020.0,1.17874108]
[1754958129010,8.203e-05,119030.0,119020.0,1.17774108]
[1754958129212,8.203e-05,119030.0,119020.0,1.17874108]
[1754958129583,8.203e-05,119030.0,119020.0,1.17774108]
[1754958129817,8.203e-05,119030.0,119020.0,0.44833318]
[1754958130024,8.203e-05,119030.0,119020.0,0.44933318]
[1754958130357,8.203e-05,119030.0,119020.0,1.29774108]
[1754958130821,8.203e-05,119030.0,119020.0,1.29974108]
[1754958133282,8.203e-05,119030.0,119020.0,1.31657108]
[1754958133485,8.203e-05,119030.0,119020.0,1.29974108]
[1754958137516,8.203e-05,119030.0,119020.0,0.45133318]
[1754958137737,8.203e-05,119030.0,119020.0,1.29974108]
[1754958138836,8.203e-05,119030.0,119020.0,1.43178108]
[1754958139924,8.203e-05,119030.0,119020.0,1.52178108]
[1754958142075,8.203e-05,119030.0,119020.0,0.67337318]
[1754958142318,8.203e-05,119030.0,119020.0,1.52178108]
[1754958143642,8.203e-05,119030.0,119020.0,1.23446688]
[1754958143870,0.00215203,119030.0,119020.0,0.39303898]
[1754958144076,0.00215203,119030.0,119020.0,1.24144688]
[1754958144737,0.00215203,119030.0,119020.0,1.24346688]
[1754958144984,0.00215203,119030.0,119020.0,1.24652688]
[1754958145155,0.00215203,119030.0,119020.0,1.32901131]
[1754958146070,0.00215203,119030.0,119020.0,0.39303898]
[1754958146279,0.00529203,119030.0,119020.0,0.39303898]
[1754958146902,0.25604014,119030.0,119020.0,0.39303898]
[1754958148344,0.25604014,119030.0,119020.0,0.093]
[1754958148553,1.10444804,119030.0,119020.0,0.225]
[1754958148719,1.10444804,119030.0,119020.0,0.093]